bitfinex/quotes_ETHUSD_20240604
["timestamp","ask_amount","ask_price","bid_price","bid_amount"]
[1717534804107,0.56739138,3809.3,3808.7,3.70900087]
[1717534805426,0.56739138,3809.3,3808.8,2.62548]
[1717534805634,0.56739138,3809.3,3808.9,1.32126577]
[1717534808690,0.56738955,3809.3,3808.9,1.32126577]
[1717534814094,2.62513,3809.4,3808.9,1.32126577]
[1717534814441,0.56739345,3809.3,3808.9,1.32126577]
[1717534815631,0.56737891,3809.3,3808.9,1.32126577]
[1717534817107,0.567377,3809.3,3809.0,2.3216]
[1717534817295,0.567377,3809.5,3809.1,4.73254577]
[1717534817503,0.567377,3809.5,3809.4,2.3216]
[1717534817827,7.3,3810.0,3809.5,2.62498]
[1717534818029,7.3,3810.0,3809.6,1.32126577]
[1717534818247,7.3,3810.0,3809.6,1.40958077]
[1717534818843,7.3,3810.0,3809.7,2.62486]
[1717534819064,7.3,3810.0,3809.8,1.32126577]
[1717534819404,7.3,3810.0,3809.9,0.08809124]
[1717534819605,7.3,3810.0,3809.9,1.40935701]
[1717534822164,2.62435,3810.5,3809.9,1.40935701]
[1717534822364,3.5672451,3810.4,3810.0,1.32126577]
[1717534822861,3.0,3810.4,3810.0,1.32126577]
[1717534826488,0.786,3810.3,3810.0,1.32126577]
[1717534826638,0.786,3810.1,3809.4,2.62506]
[1717534826842,0.786,3810.1,3809.5,1.32126577]
[1717534827055,0.786,3810.1,3809.5,1.40917742]
[1717534827759,2.62468,3810.0,3809.5,1.40917742]
[1717534831494,2.62483,3809.8,3809.5,1.40917742]
[1717534832710,2.62494,3809.6,3809.5,1.40917742]
[1717534833269,3.41094,3809.6,3809.5,1.40917742]
[1717534833902,3.41094,3809.6,3809.5,0.08791165]
[1717534834110,2.62511,3809.4,3808.8,2.62544]
[1717534834413,3.41111,3809.4,3808.9,1.32126577]
[1717534834582,2.62511,3809.4,3808.9,1.40970782]
[1717534836994,2.62523,3809.2,3808.9,1.40970782]
[1717534839511,4.91443,3809.2,3808.9,1.40970782]
[1717534840818,5.70043,3809.2,3808.9,1.40970782]
[1717534844124,5.70043,3809.2,3808.9,1.32126577]
[1717534844544,5.70043,3809.2,3809.0,0.08564895]
[1717534844906,5.70043,3809.2,3808.9,1.32126577]
[1717534845146,4.91443,3809.2,3809.1,0.08559815]
[1717534845310,5.70043,3809.2,3809.0,0.08564895]
[1717534845510,5.70043,3809.2,3808.9,1.32126577]
[1717534845726,5.70043,3809.2,3809.1,0.08559815]
[1717534845920,5.70043,3809.2,3809.0,0.08564895]
[1717534846123,5.70043,3809.2,3808.9,1.32126577]
[1717534846349,5.70043,3809.2,3809.1,0.08559815]
[1717534846649,5.70043,3809.2,3808.9,1.32126577]
[1717534846949,5.70043,3809.2,3809.1,0.08559815]
[1717534847248,5.70043,3809.2,3808.9,1.32126577]
[1717534847432,5.70043,3809.2,3809.1,0.08559815]
[1717534847641,5.70043,3809.2,3808.9,1.32126577]
[1717534847950,5.70043,3809.2,3809.1,0.08559815]
[1717534848137,5.70043,3809.2,3809.0,0.08564895]
[1717534848334,5.70043,3809.2,3808.9,1.32126577]
[1717534848514,5.70043,3809.2,3809.1,0.08559815]
[1717534848710,5.70043,3809.2,3808.9,1.32126577]
[1717534848913,5.70043,3809.2,3809.1,0.08559815]
[1717534849111,3.41123,3809.2,3808.9,1.32126577]
[1717534849356,3.41123,3809.2,3809.1,0.08559815]
[1717534849545,3.41123,3809.2,3809.0,0.08564895]
[1717534849724,3.41123,3809.2,3809.1,0.08559815]
[1717534850123,3.41123,3809.2,3808.9,1.32126577]
[1717534850325,3.41123,3809.2,3809.1,0.08559815]
[1717534850670,2.62523,3809.2,3809.1,1.40686392]
[1717534851780,2.62506,3809.5,3809.1,1.40686392]
[1717534857097,2.62506,3809.5,3809.2,3.63036577]
[1717534857301,2.62506,3809.5,3809.2,4.0875152]
[1717534858298,2.62506,3809.5,3809.2,3.71591881]
[1717534859520,2.62506,3809.5,3809.2,1.40681881]
[1717534870773,8.086,3809.6,3809.2,1.40681881]
[1717534870984,7.3,3809.6,3809.4,0.786]
[1717534871147,7.3,3809.6,3809.5,6.35287577]
[1717534871349,7.3,3809.6,3809.5,7.15781566]
[1717534873049,22.66,3810.3,3809.8,2.6248]
[1717534873380,22.66,3810.3,3809.9,1.32126577]
[1717534873674,22.66,3810.3,3809.9,1.40339202]
[1717534875972,19.66,3810.3,3810.0,4.87794]
[1717534876274,2.62423,3810.7,3810.1,2.11002367]
[1717534876439,2.62423,3810.7,3810.1,2.02799897]
[1717534876777,7.3,3810.9,3810.3,2.2533]
[1717534876971,3.0,3810.8,3810.4,1.32126577]
[1717534882206,3.0,3810.9,3810.4,1.32126577]
[1717534888791,2.62413,3810.8,3810.4,1.32126577]
[1717534889122,0.786,3810.6,3810.4,1.32126577]
[1717534889317,0.786,3810.6,3810.5,0.08152903]
[1717534889494,0.786,3810.6,3810.5,1.4027948]
[1717534890423,5.73133,3810.8,3810.5,1.4027948]
[1717534890586,2.62425,3810.6,3810.5,0.08152903]
[1717534890785,3.41025,3810.6,3810.5,0.08152903]
[1717534891011,2.62446,3810.4,3809.7,2.3426]
[1717534891208,3.41046,3810.4,3809.8,1.32126577]
[1717534891398,3.41046,3810.4,3809.8,1.40312463]
[1717534893389,2.62458,3810.2,3809.8,1.40312463]
[1717534904543,2.4177,3810.1,3809.8,1.40312463]
[1717534904707,2.62467,3810.0,3809.8,1.40312463]
[1717534912802,2.62467,3810.0,3809.8,0.08185886]
[1717534913027,0.786,3809.9,3809.8,0.08185886]
[1717534913302,2.62511,3809.4,3808.8,2.62543]
[1717534913538,2.62511,3809.4,3808.9,1.32126577]
[1717534914348,0.786,3809.0,3808.9,1.32126577]
[1717534914548,0.786,3809.0,3808.2,5.01671]
[1717534914549,2.6254,3809.0,3808.2,5.01671]
[1717534914848,3.4114,3809.0,3808.3,1.32126577]
[1717534915448,3.41154,3808.8,3808.3,1.32126577]
[1717534916487,2.62568,3808.6,3808.3,1.32126577]
[1717534920446,2.62568,3808.6,3808.4,0.08270071]
[1717534920648,2.62568,3808.6,3808.5,1.32126577]
[1717534920814,2.62568,3808.6,3808.4,1.40396648]
[1717534920815,3.41168,3808.6,3808.4,1.40396648]
[1717534921016,3.41168,3808.6,3808.5,0.08264989]
[1717534921233,3.41168,3808.6,3807.7,2.318]
[1717534921234,2.62581,3808.4,3807.7,2.318]
[1717534921422,2.62581,3808.4,3807.8,1.32126577]
[1717534921613,2.62581,3808.4,3807.8,1.4045783]
[1717534922846,2.62596,3808.2,3807.8,1.4045783]
[1717534924331,2.3784,3808.1,3807.8,1.4045783]
[1717534925826,3.41205,3808.0,3807.8,1.4045783]
[1717534926123,2.62605,3808.0,3807.8,1.4045783]
[1717534929961,2.62605,3808.0,3807.8,1.32126577]
[1717534930273,3.41205,3808.0,3807.9,0.0832617]
[1717534930776,3.41205,3808.0,3807.2,2.4397]
[1717534930922,3.41205,3808.0,3807.9,0.0832617]
[1717534931121,3.41205,3808.0,3807.3,1.32126577]
[1717534931442,3.41205,3808.0,3807.9,0.08351753]
[1717534931680,3.41205,3808.0,3807.3,1.32126577]
[1717534931845,2.62605,3808.0,3807.3,1.32126577]
[1717534932046,2.62605,3808.0,3807.4,0.08377172]
[1717534932286,2.62605,3808.0,3807.5,1.32126577]
[1717534932788,2.62605,3808.0,3807.5,1.40498665]
[1717534933689,2.62589,3808.3,3807.7,0.786]
[1717534933988,9.92567,3808.6,3808.2,2.3236]
[1717534934211,5.49674272,3808.9,3808.3,2.10726577]
[1717534934412,5.49674272,3808.9,3808.3,2.55035235]
[1717534935119,2.87127272,3808.9,3808.3,2.55035235]
[1717534935289,2.87127272,3808.9,3808.5,0.786]
[1717534935487,2.87127272,3808.9,3808.6,3.94689577]
[1717534935685,7.3,3809.1,3808.7,0.786]
[1717534935887,7.3,3809.1,3808.8,3.64486577]
[1717534940694,2.62504,3809.5,3808.8,3.64486577]
[1717534941422,2.62504,3809.5,3808.9,0.08332475]
[1717534941617,2.62504,3809.5,3809.0,1.32126577]
[1717534942022,2.62504,3809.5,3809.1,0.08322315]
[1717534942222,2.62504,3809.5,3809.2,1.32126577]
[1717534946088,2.62504,3809.5,3809.3,0.08281455]
[1717534946421,2.62504,3809.5,3809.2,1.32126577]
[1717534946620,2.62504,3809.5,3809.4,0.08276376]
[1717534947590,2.62504,3809.5,3809.2,1.32126577]
[1717534947790,2.62504,3809.5,3809.3,0.08281455]
[1717534947992,2.62504,3809.5,3809.2,1.32126577]
[1717534948187,2.62504,3809.5,3809.3,0.08281455]
[1717534948392,2.62504,3809.5,3809.2,1.32126577]
[1717534948692,2.62504,3809.5,3809.3,0.08281455]
[1717534949115,2.62504,3809.5,3809.2,1.32126577]
[1717534949436,2.62504,3809.5,3809.3,0.08281455]
[1717534949789,2.62504,3809.5,3809.2,1.32126577]
[1717534949989,2.62504,3809.5,3809.3,0.08281455]
[1717534950189,2.62504,3809.5,3809.2,1.32126577]
[1717534950430,2.62504,3809.5,3809.3,0.08281455]
[1717534950931,2.62504,3809.5,3809.2,1.32126577]
[1717534951115,2.62504,3809.5,3809.4,0.08276376]
[1717534951290,2.62504,3809.5,3809.3,0.08281455]
[1717534951589,2.62504,3809.5,3809.4,0.08276376]
[1717534951790,2.62504,3809.5,3809.2,1.32126577]
[1717534952020,2.62504,3809.5,3809.3,0.08281455]
[1717534952403,2.62504,3809.5,3809.2,1.32126577]
[1717534952592,2.62504,3809.5,3809.3,0.08281455]
[1717534952804,2.62504,3809.5,3809.2,1.32126577]
[1717534953029,2.62504,3809.5,3809.3,0.08281455]
[1717534953224,3.1023,3809.4,3809.3,0.08281455]
[1717534953413,2.62527,3809.2,3808.5,2.62566]
[1717534953738,3.41127,3809.2,3808.6,1.40443595]
[1717534954231,2.62527,3809.2,3808.6,1.40443595]
[1717534954727,3.41127,3809.2,3808.6,1.40443595]
[1717534954935,2.62527,3809.2,3808.6,1.40443595]
[1717534955434,2.62527,3809.2,3808.6,1.32126577]
[1717534955915,2.62527,3809.2,3808.7,0.08311936]
[1717534956120,2.62527,3809.2,3808.8,1.32126577]
[1717534956496,2.62527,3809.2,3808.9,0.08301775]
[1717534956705,2.62527,3809.2,3809.0,1.32126577]
[1717534957030,2.62527,3809.2,3809.1,0.08291615]
[1717534957343,2.3163,3809.4,3809.1,1.40418192]
[1717534957641,2.3163,3809.4,3809.1,1.32126577]
[1717534958146,3.41106,3809.5,3809.1,1.32126577]
[1717534959447,2.62506,3809.5,3809.1,1.32126577]
[1717534959606,2.62506,3809.5,3809.2,1.32126577]
[1717534959947,7.3,3809.7,3809.3,0.08060391]
[1717534960121,7.3,3809.7,3809.4,2.10726577]
[1717534960334,7.3,3809.7,3809.5,2.62501]
[1717534960537,7.3,3809.7,3809.6,5.05719335]
[1717534960738,12.36,3810.0,3809.6,5.13764488]
[1717534960948,12.36,3810.0,3809.7,2.62486]
[1717534961259,12.36,3810.0,3809.8,1.32126577]
[1717534961617,12.36,3810.0,3809.8,2.10726577]
[1717534961859,12.36,3810.0,3809.8,2.08947111]
[1717534962684,12.36,3810.0,3809.8,1.32126577]
[1717534964125,7.3,3810.1,3809.8,1.32126577]
[1717534969137,8.086,3810.1,3809.8,1.32126577]
[1717534969960,2.62467,3810.0,3809.8,1.32126577]
[1717534972865,2.62481,3809.8,3809.6,1.32126577]
[1717534973066,2.62481,3809.8,3809.7,0.07983381]
[1717534973583,10.71064,3810.1,3809.7,0.07983381]
[1717534973952,10.71064,3810.1,3809.6,1.32126577]
[1717534975801,3.41064,3810.1,3809.6,1.32126577]
[1717534979703,2.62464,3810.1,3809.6,1.32126577]
[1717534981472,2.62476,3809.9,3809.6,1.32126577]
[1717534982116,2.62476,3809.9,3809.7,0.07853811]
[1717534982410,3.41076,3809.9,3809.7,0.07853811]
[1717534982730,3.41076,3809.9,3809.6,1.32126577]
[1717534983617,0.786,3809.7,3809.6,1.32126577]
[1717534983931,0.786,3809.7,3809.6,1.39985467]
[1717534984504,3.41076,3809.9,3809.6,1.39985467]
[1717534984810,3.41076,3809.9,3809.6,1.32126577]
[1717534989333,2.62487,3809.7,3809.6,1.32126577]
[1717534989829,2.62487,3809.7,3809.6,1.399849]
[1717534995695,2.62487,3809.7,3809.6,1.32126577]
[1717534995895,2.62487,3809.7,3809.6,1.39990013]
[1717534996793,2.62473,3810.0,3809.6,3.80610013]
[1717534996993,2.62473,3810.0,3809.6,3.72746577]
[1717534997419,2.62473,3810.0,3809.7,0.07850969]
[1717534997617,2.62473,3810.0,3809.8,1.32126577]
[1717535004180,2.62473,3810.0,3809.9,0.07838825]
[1717535004384,5.62473,3810.0,3809.9,0.07838825]
[1717535004740,5.62473,3810.0,3809.8,1.32126577]
[1717535008680,5.62473,3810.0,3809.9,0.07833145]
[1717535012565,5.62473,3810.0,3809.8,1.32126577]
[1717535020445,0.56726541,3809.9,3809.8,1.32126577]
[1717535021919,0.56726477,3809.9,3809.8,1.32126577]
[1717535022503,0.56726733,3809.9,3809.8,1.32126577]
[1717535023919,0.56726855,3809.9,3809.8,1.32126577]
[1717535025352,0.56728229,3809.9,3809.8,1.32126577]
[1717535025713,2.62497,3809.6,3809.0,2.3484]
[1717535026018,2.62497,3809.6,3809.1,1.32126577]
[1717535026019,0.56732438,3809.5,3809.1,1.32126577]
[1717535026248,0.56732438,3809.5,3809.1,1.39695615]
[1717535027558,2.62497,3809.6,3809.1,1.39695615]
[1717535028451,2.62509,3809.4,3809.1,1.39695615]
[1717535030816,2.62493,3809.7,3809.1,1.39695615]
[1717535031447,2.62493,3809.7,3809.2,2.3841]
[1717535031642,2.62493,3809.7,3809.3,1.32126577]
[1717535031883,2.62493,3809.7,3809.3,1.39685456]
[1717535032876,2.62503,3809.5,3809.3,1.39685456]
[1717535034158,2.57503,3809.5,3809.3,1.39685456]
[1717535035308,2.57503,3809.5,3809.3,1.77495002]
[1717535035519,2.62487,3809.8,3809.3,1.77495002]
[1717535042412,3.0,3810.0,3809.3,4.40009002]
[1717535042615,3.0,3810.0,3809.4,2.3871]
[1717535042817,9.92466,3810.1,3809.6,2.3123]
[1717535043124,7.3,3810.1,3809.8,0.786]
[1717535043280,7.3,3810.1,3809.9,3.63356577]
[1717535044096,7.3,3810.1,3809.9,6.25828577]
[1717535044361,7.3,3810.1,3810.0,1.56555987]
[1717535044485,7.3,3810.1,3810.0,2.88682564]
[1717535044671,7.3,3810.1,3810.0,2.10082564]
[1717535045800,7.3,3810.1,3810.0,2.88682564]
[1717535046202,3.89278318,3810.4,3810.1,5.08958]
[1717535046400,3.89278318,3810.4,3810.2,2.90490633]
[1717535046600,3.89278318,3810.4,3810.2,2.97993608]
[1717535046937,3.89278318,3810.4,3810.2,2.90490633]
[1717535049416,3.89278318,3810.4,3810.3,2.62446]
[1717535049741,3.89278318,3810.4,3810.3,3.94572577]
[1717535049901,3.89278318,3810.4,3810.3,4.7451624]
[1717535052938,7.3,3810.8,3810.3,4.7451624]
[1717535053127,2.62399,3811.0,3810.4,1.32126577]
[1717535073289,0.56711659,3810.9,3810.4,1.32126577]
[1717535075026,0.56711659,3810.9,3810.5,0.07473295]
[1717535075226,0.56711659,3810.9,3810.6,1.32126577]
[1717535075522,0.56711659,3810.9,3810.7,0.07463143]
[1717535075682,0.56711659,3810.9,3810.8,1.32126577]
[1717535083436,2.62399,3811.0,3810.8,1.32126577]
[1717535083610,0.5671352,3810.9,3810.8,1.32126577]
[1717535088349,2.3525,3810.8,3810.1,2.465]
[1717535088560,2.3525,3810.8,3810.2,1.39619635]
[1717535088725,2.62433,3810.5,3810.2,1.39619635]
[1717535089126,0.5671352,3810.4,3810.2,1.39619635]
[1717535089355,2.62446,3810.3,3810.2,1.39619635]
[1717535089566,3.1915952,3810.3,3810.2,1.39619635]
[1717535089744,3.1915952,3810.3,3810.2,1.32126577]
[1717535089932,3.1915952,3810.3,3810.2,1.39617935]
[1717535091115,3.97770147,3810.3,3810.2,1.39617935]
[1717535091316,2.62467,3810.0,3809.4,2.3292]
[1717535091556,2.62467,3810.0,3809.5,1.39653197]
[1717535091765,2.62482,3809.8,3809.5,1.39653197]
[1717535091960,2.62494,3809.6,3809.5,1.39653197]
[1717535100800,2.62478,3809.9,3809.5,1.39653197]
[1717535101151,2.62456,3810.2,3809.5,1.39653197]
[1717535101484,7.3,3810.4,3809.8,0.786]
[1717535101688,7.3,3810.4,3809.9,1.32126577]
[1717535101933,2.62437,3810.5,3809.9,1.39648111]
[1717535102052,2.62437,3810.5,3809.9,1.32126577]
[1717535102903,2.62437,3810.5,3809.9,3.94599577]
[1717535103098,2.62437,3810.5,3810.0,0.70665958]
[1717535103309,2.62437,3810.5,3810.1,1.32126577]
[1717535103602,2.62437,3810.5,3810.2,0.07506302]
[1717535103810,2.62437,3810.5,3810.3,1.32126577]
[1717535104099,2.62437,3810.5,3810.3,1.39627802]
[1717535118273,9.92418,3810.8,3810.3,1.76399879]
[1717535118869,9.92418,3810.8,3810.3,1.68898654]
[1717535119068,9.92418,3810.8,3810.4,0.07175777]
[1717535119242,9.92418,3810.8,3810.5,1.32126577]
[1717535119450,2.62418,3810.8,3810.5,1.39297277]
[1717535119927,2.62396,3811.1,3810.5,1.57593512]
[1717535120130,2.62396,3811.1,3810.6,0.786]
[1717535120450,2.62396,3811.1,3810.7,3.73606577]
[1717535120768,2.62396,3811.1,3810.7,3.80767126]
[1717535125057,2.62405,3810.9,3810.7,3.80767126]
[1717535125233,2.62405,3810.9,3810.7,1.39287126]
[1717535131389,2.6399902,3811.2,3810.7,1.66899356]
[1717535131555,0.56713595,3811.1,3810.7,1.66899356]
[1717535131884,2.6399902,3811.2,3810.8,3.0786]
[1717535132210,2.6399902,3811.2,3810.9,1.44193977]
[1717535132742,0.0160802,3811.2,3810.9,1.44193977]
[1717535133042,0.0160802,3811.2,3810.9,2.10541798]
[1717535133238,0.58317515,3811.2,3810.9,2.10541798]
[1717535134276,0.58317515,3811.2,3810.9,1.44193977]
[1717535137269,0.0160802,3811.2,3810.9,1.44193977]
[1717535137421,0.58317861,3811.2,3810.9,1.44193977]
[1717535139120,0.58317861,3811.2,3810.9,1.32126577]
[1717535139342,0.58317861,3811.2,3811.0,0.12059079]
[1717535139638,0.58317861,3811.2,3811.1,1.32126577]
[1717535139846,0.58317861,3811.2,3811.1,1.44180451]
[1717535142201,0.58317861,3811.2,3811.1,0.12053874]
[1717535142402,0.58317861,3811.2,3810.2,5.85306]
[1717535142604,2.62405,3810.9,3810.3,1.44222093]
[1717535142950,0.56709841,3810.8,3810.3,1.44222093]
[1717535143718,0.56715623,3810.8,3810.3,1.44222093]
[1717535144309,0.56715623,3810.8,3810.4,0.72952809]
[1717535144539,0.56715623,3810.8,3810.5,1.32126577]
[1717535144905,0.56715623,3810.8,3810.6,0.12079898]
[1717535145106,0.56715623,3810.8,3810.7,1.32126577]
[1717535145308,0.56715623,3810.8,3810.7,1.4420127]
[1717535149181,0.56714424,3810.8,3810.7,1.4420127]
[1717535150666,0.56714288,3810.8,3810.7,1.4420127]
[1717535151552,2.62405,3810.9,3810.7,1.4420127]
[1717535153363,2.6399702,3811.2,3810.7,1.4420127]
[1717535153657,0.56711649,3811.1,3810.7,4.15345297]
[1717535155768,0.56709775,3811.1,3810.7,4.15345297]
[1717535159361,0.56709775,3811.1,3810.7,3.7468127]
[1717535159811,0.56709775,3811.1,3810.7,1.4420127]
[1717535160160,2.62398,3811.0,3810.7,1.4420127]
[1717535160443,0.56709775,3810.9,3810.7,1.4420127]
[1717535170791,2.62412,3810.8,3810.7,1.4420127]
[1717535171101,3.19121775,3810.8,3810.7,1.4420127]
[1717535171471,5.61051775,3810.8,3810.7,1.4420127]
[1717535171672,5.61051775,3810.8,3810.0,2.62461]
[1717535171984,0.56709775,3810.7,3810.1,1.32126577]
[1717535172686,2.62428,3810.6,3810.1,1.32126577]
[1717535172881,0.56709775,3810.5,3810.1,1.32126577]
[1717535173868,2.62441,3810.4,3810.1,1.32126577]
[1717535174296,0.56722228,3810.3,3810.1,1.32126577]
[1717535175213,0.56722776,3810.3,3810.1,1.32126577]
[1717535175412,2.62441,3810.4,3810.2,0.11930785]
[1717535175711,2.62441,3810.4,3810.3,1.32126577]
[1717535175922,2.62441,3810.4,3810.3,1.44062356]
[1717535176077,3.19163444,3810.4,3810.3,1.44062356]
[1717535177712,2.62441,3810.4,3810.3,1.44062356]
[1717535179113,3.19163834,3810.4,3810.3,1.44062356]
[1717535180212,2.62441,3810.4,3810.3,1.44062356]
[1717535185281,3.19164807,3810.4,3810.3,1.44062356]
[1717535186495,3.19164807,3810.4,3810.3,1.32126577]
[1717535186805,2.62441,3810.4,3810.3,1.32126577]
[1717535187118,2.62464,3810.1,3809.6,2.4781]
[1717535187332,3.41064,3810.1,3809.7,1.32126577]
[1717535188327,2.62475,3809.9,3809.7,1.32126577]
[1717535189990,2.62458,3810.2,3809.7,1.32126577]
[1717535190191,2.62458,3810.2,3809.8,0.37993658]
[1717535190395,2.62458,3810.2,3809.9,1.32126577]
[1717535190704,2.62458,3810.2,3810.0,0.11978031]
[1717535191046,2.62458,3810.2,3810.1,1.32126577]
[1717535191338,2.62458,3810.2,3810.1,1.44099401]
[1717535194943,3.1918437,3810.2,3810.1,1.44099401]
[1717535195747,3.1918464,3810.2,3810.1,1.44099401]
[1717535196956,0.5672664,3810.2,3810.1,3.69769401]
[1717535197130,2.62438,3810.5,3810.1,4.40852941]
[1717535197131,0.56724919,3810.4,3810.1,4.40852941]
[1717535197713,0.56724919,3810.4,3810.1,2.15182941]
[1717535197941,2.62438,3810.5,3810.1,2.15182941]
[1717535198463,2.62438,3810.5,3810.1,1.44099401]
[1717535198657,2.62453,3810.2,3810.1,0.11972824]
[1717535198979,2.62453,3810.2,3809.0,2.2839]
[1717535198980,2.62475,3809.9,3809.1,2.62526]
[1717535199110,0.56720007,3809.8,3809.2,1.81218177]
[1717535199317,0.56720007,3809.8,3809.2,1.92428463]
[1717535199877,2.62488,3809.7,3809.2,1.92428463]
[1717535200678,2.62506,3809.5,3809.2,1.43336863]
[1717535202154,2.62485,3809.8,3809.2,1.43336863]
[1717535202429,0.56731108,3809.7,3809.2,1.43336863]
[1717535203244,2.62485,3809.8,3809.2,1.43336863]
[1717535203960,2.3772,3809.5,3809.2,1.43336863]
[1717535204168,2.62508,3809.4,3809.2,1.43336863]
[1717535204327,3.41108,3809.4,3809.2,1.43336863]
[1717535204755,0.5674021,3809.3,3809.2,1.43336863]
[1717535205142,3.41108,3809.4,3809.2,1.43336863]
[1717535205960,0.56740312,3809.3,3809.2,1.43336863]
[1717535206355,0.56740312,3809.3,3809.2,0.11210286]
[1717535206666,0.56740312,3809.3,3808.4,2.62572]
[1717535206667,2.62534,3809.1,3808.4,2.62572]
[1717535206871,2.62534,3809.1,3808.5,1.32126577]
[1717535207496,2.62545,3808.9,3808.5,1.32126577]
[1717535209768,0.786,3808.8,3808.5,1.32126577]
[1717535210209,2.62545,3808.9,3808.5,1.32126577]
[1717535216564,2.62559,3808.7,3808.5,1.32126577]
[1717535219028,3.41159,3808.7,3808.5,1.32126577]
[1717535220342,3.41159,3808.7,3808.6,0.11299857]
[1717535220548,3.41159,3808.7,3808.6,1.43426434]
[1717535221202,3.41159,3808.7,3808.6,0.11299857]
[1717535221203,5.77709,3808.7,3808.6,0.11299857]
[1717535221598,2.62592,3808.2,3807.7,2.3365]
[1717535221828,2.62592,3808.2,3807.8,1.32126577]
[1717535222010,2.62592,3808.2,3807.8,1.43468131]
[1717535225145,2.62611,3807.9,3807.8,0.11341554]
[1717535225302,3.41211,3807.9,3807.1,2.62662]
[1717535225502,3.41211,3807.9,3807.8,0.1135342]
[1717535227434,2.62611,3807.9,3807.2,3.80546577]
[1717535227631,2.62611,3807.9,3807.8,0.1136444]
[1717535228152,2.62611,3807.9,3807.2,3.80546577]
[1717535228352,2.62611,3807.9,3807.8,0.1136444]
[1717535228552,2.62611,3807.9,3807.2,1.32126577]
[1717535228710,3.41211,3807.9,3807.8,0.1136444]
[1717535229030,3.41211,3807.9,3807.2,1.32126577]
[1717535229438,2.62627,3807.7,3807.3,0.11390509]
[1717535229636,2.62627,3807.7,3807.4,1.32126577]
[1717535229952,2.62627,3807.7,3807.5,0.11380081]
[1717535230247,2.62627,3807.7,3807.6,1.32126577]
[1717535230605,2.62627,3807.7,3807.6,1.43501444]
[1717535230951,3.41227,3807.7,3807.6,1.43501444]
[1717535231328,3.41227,3807.7,3807.6,1.32126577]
[1717535232753,2.62645,3807.5,3807.0,2.408]
[1717535233068,2.62645,3807.5,3807.1,1.32126577]
[1717535233551,2.62645,3807.5,3807.1,1.95687435]
[1717535235419,2.62645,3807.5,3807.2,0.11447166]
[1717535235614,2.62645,3807.5,3807.3,1.32126577]
[1717535235958,2.62645,3807.5,3807.4,0.11436737]
[1717535236144,2.62645,3807.5,3807.4,1.43563314]
[1717535236454,2.62622,3807.8,3807.4,1.43563314]
[1717535236621,2.62622,3807.8,3807.5,1.32126577]
[1717535236951,2.62622,3807.8,3807.6,0.11426309]
[1717535237154,2.62622,3807.8,3807.6,1.43552886]
[1717535241672,2.62622,3807.8,3807.7,1.32126577]
[1717535242197,2.62622,3807.8,3807.7,1.43543998]
[1717535242631,2.62603,3808.1,3807.7,1.43543998]
[1717535242839,3.786,3808.0,3807.7,1.32126577]
[1717535244358,2.62611,3807.9,3807.7,1.32126577]
[1717535248578,3.0366,3807.8,3807.7,1.32126577]
[1717535248771,3.60420231,3807.8,3807.7,1.32126577]
[1717535250461,3.60420231,3807.8,3807.7,1.43534668]
[1717535254284,3.0366,3807.8,3807.7,1.43534668]
[1717535254499,1.35364773,3807.8,3807.7,0.11408091]
[1717535254784,1.35364773,3807.8,3806.9,4.98425]
[1717535254785,2.62637,3807.6,3806.9,4.98425]
[1717535254982,2.62637,3807.6,3807.0,1.32126577]
[1717535255184,0.56767056,3807.5,3807.0,1.32126577]
[1717535260092,0.56767056,3807.5,3807.0,1.17381952]
[1717535263062,2.62647,3807.4,3807.0,1.17381952]
[1717535265578,2.62647,3807.4,3807.1,0.11453229]
[1717535265776,2.62647,3807.4,3807.1,1.32126577]
[1717535266003,2.62647,3807.4,3807.2,0.11448014]
[1717535270424,0.786,3807.3,3807.2,0.11448014]
[1717535270626,3.786,3807.3,3807.2,0.11448014]
[1717535270922,4.35368457,3807.3,3807.2,0.11448014]
[1717535271420,6.62258457,3807.3,3807.2,0.11448014]
[1717535271719,2.6267,3807.1,3806.4,2.62711]
[1717535272016,0.786,3807.0,3806.5,1.4361195]
[1717535272388,2.2689,3806.9,3806.5,1.4361195]
[1717535272589,2.2689,3806.9,3806.5,1.32126577]
[1717535272924,2.2689,3806.9,3806.6,0.1149797]
[1717535273080,2.2689,3806.9,3806.7,1.32126577]
[1717535274402,3.4127,3807.1,3806.7,1.32126577]
[1717535274605,3.4127,3807.1,3806.8,0.11416407]
[1717535274823,2.6267,3807.1,3806.8,1.32126577]
[1717535275709,0.786,3807.0,3806.8,1.32126577]
[1717535276422,2.6268,3806.9,3806.8,1.32126577]
[1717535280211,0.786,3807.1,3806.8,1.32126577]
[1717535280402,1.35374132,3807.1,3806.8,1.32126577]
[1717535280603,0.56774132,3807.1,3806.8,1.32126577]
[1717535281447,0.56774132,3807.1,3806.9,1.32126577]
[1717535281600,0.56774132,3807.2,3806.9,1.32126577]
[1717535281808,3.0,3807.4,3807.0,2.74080541]
[1717535282007,3.0,3807.4,3807.1,1.32126577]
[1717535282208,3.0,3807.4,3807.1,1.43527903]
[1717535282431,7.3,3807.5,3807.1,1.43527903]
[1717535283149,7.3,3807.5,3807.1,1.32126577]
[1717535283343,0.56767217,3807.4,3807.1,1.32126577]
[1717535283515,0.56767217,3807.4,3807.2,0.11396111]
[1717535283705,0.56767217,3807.4,3807.3,1.32126577]
[1717535284108,3.56767217,3807.5,3807.3,1.43517473]
[1717535284311,0.56767217,3807.4,3807.3,1.43517473]
[1717535286247,3.56767217,3807.5,3807.3,1.43517473]
[1717535286445,0.56767217,3807.4,3807.3,1.43517473]
[1717535287912,0.56766686,3807.4,3807.3,1.43517473]
[1717535288249,1.35366686,3807.4,3807.3,0.11390896]
[1717535288417,3.78356686,3807.4,3806.4,2.6271]
[1717535288745,2.62663,3807.2,3806.5,1.32126577]
[1717535289909,0.786,3807.2,3806.5,1.32126577]
[1717535290320,0.786,3807.0,3806.5,1.32126577]
[1717535291605,2.6269,3806.8,3806.5,1.32126577]
[1717535294839,2.6269,3806.8,3806.5,3.72756577]
[1717535295238,2.6269,3806.8,3806.6,0.11426839]
[1717535295407,2.62671,3807.1,3806.7,1.32126577]
[1717535295610,2.62671,3807.1,3806.7,1.435482]
[1717535312105,0.56772636,3807.0,3806.7,1.435482]
[1717535314160,2.62671,3807.1,3806.7,1.435482]